[Event "36th Belgrade Trophy 2023"]
[Site "Belgrade"]
[Date "2023.12.01"]
[Round "7.11"]
[White "Djokic, Nenad"]
[Black "Belke, Frank"]
[Result "1/2-1/2"]
[ECO "D85"]
[WhiteElo "2223"]
[BlackElo "2121"]
[Annotator "RC"]
[PlyCount "97"]
[EventDate "2023.10.23"]
[EventType "swiss"]
[EventCountry "SRB"]
[SourceTitle "playchess.com"]
[Source "ChessBase"]
[SourceQuality "1"]
[TimeControl "40/5400+30:900+30"]

1. d4 {[%emt 1:31:00]} Nf6 {[%emt 1:31:00]} 2. c4 {[%emt 0:00:30]} g6 {[%emt 0:00:00]} 3. Nc3 d5 4. cxd5 {[%emt 0:01:00]} Nxd5 {[%emt 0:01:30]} 5. e4 {[%emt 0:00:30]} Nxc3 {[%emt 0:00:30]} 6. bxc3 {[%emt 0:00:00]} Bg7 {[%emt 0:00:30]} 7. Be3 {[%emt 0:01:00]} c5 {[%emt 0:00:00]} 8. Qd2 Qa5 {[%emt 0:01:00]} 9. Nf3 {[%emt 0:01:00]} O-O {[%emt 0:00:30]} 10. Rc1 {[%emt 0:00:30]} cxd4 {[%emt 0:00:30]} 11. cxd4 {[%emt 0:00:30]} Qxd2+ {[%emt 0:00:30]} 12. Nxd2 {[%emt 0:00:30]} Nc6 {[%emt 0:00:30]} 13. Nb3 {[%emt 0:00:00]} a5 14. a4 {[%emt 0:01:00]} e5 {[%emt 0:01:00]} 15. d5 {[%emt 0:00:30]} Nd4 {[%emt 0:00:30]} 16. Bxd4 {[%emt 0:00:00]} exd4 {[%emt 0:00:30]} 17. Bb5 {[%emt 0:01:00]} f5 {[%emt 0:00:30]} 18. exf5 {[%emt 0:00:30]} Bxf5 {[%emt 0:00:30]} 19. O-O {[%emt 0:00:30]} Be4 {[%emt 0:00:30]} 20. Rfd1 {[%emt 0:00:30]} Bxd5 {[%emt 0:00:30]} 21. Nxd4 {[%emt 0:00:30]} Rac8 {[%emt 0:00:30]} 22. Rxc8 {[%emt 0:00:00]} Rxc8 {[%emt 0:00:00]} 23. Nf3 {[%emt 0:01:00]} Bb3 {[%emt 0:01:00]} 24. Re1 {[%emt 0:00:30]} Bh6 {[%emt 0:00:30]} 25. h4 {[%emt 0:00:30]} Rc1 {[%emt 0:00:00]} 26. Rxc1 Bxc1 {[%emt 0:01:00]} 27. Nd4 {[%emt 0:01:00]} Bd5 {[%emt 0:00:30]} 28. g3 {[%emt 0:00:30]} Bb2 {[%emt 0:00:30]} 29. Nc2 {[%emt 0:00:30]} Kf8 {[%emt 0:00:30]} 30. Kf1 {[%emt 0:00:30]} Ke7 {[%emt 0:00:30]} 31. Ke2 {[%emt 0:00:30]} Be4 {[%emt 0:00:30]} 32. Ne3 {[%emt 0:00:30]} Bd4 {[%emt 0:00:00]} 33. Nc4 b6 {[%emt 0:01:00]} 34. f3 {[%emt 0:01:00]} Bd5 {[%emt 0:00:30]} 35. Ne3 {[%emt 0:00:30]} Bb7 {[%emt 0:00:30]} 36. h5 {[%emt 0:00:30]} Kf6 {[%emt 0:00:30]} 37. hxg6 {[%emt 0:00:00]} hxg6 {[%emt 0:00:00]} 38. f4 Be4 {[%emt 0:01:00]} 39. Nc4 {[%emt 0:01:30]} Ke6 {[%emt 0:00:30]} 40. Nd2 {[%emt 0:00:30]} Bf5 {[%emt 0:00:30]} 41. Nf3 {[%emt 0:15:30]} Bc3 {[%emt 0:15:30]} 42. Bd3 {[%emt 0:00:30]} Kd5 {[%emt 0:00:30]} 43. Bxf5 {[%emt 0:00:00]} gxf5 {[%emt 0:00:30]} 44. Kd3 {[%emt 0:01:00]} Bf6 {[%emt 0:00:30]} 45. Nh4 {[%emt 0:00:30]} Ke6 {[%emt 0:00:30]} 46. Kc4 {[%emt 0:00:30]} Be7 {[%emt 0:00:00]} 47. Kb5 Bc5 {[%emt 0:01:00]} 48. Kc6 {[%emt 0:01:00]} Bf2 {[%emt 0:00:30]} 49. Nf3 {[%emt 0:00:30]} 1/2-1/2

[Event "36th Belgrade Trophy 2023"]
[Site "Belgrade"]
[Date "2023.12.01"]
[Round "7.12"]
[White "Stojanovic, Mihajlo"]
[Black "Oliinyk, Serafim"]
[Result "1-0"]
[ECO "D54"]
[WhiteElo "2490"]
[BlackElo "1990"]
[Annotator "TA"]
[PlyCount "131"]
[EventDate "2023.10.23"]
[EventType "swiss"]
[EventCountry "SRB"]
[SourceTitle "playchess.com"]
[Source "ChessBase"]
[SourceQuality "1"]
[TimeControl "40/5400+30:900+30"]

{[%evp 21,131,0,28,27,30,25,32,33,33,25,29,22,28,30,28,22,22,24,23,10,0,13,28,-6,16,0,14,9,25,0,0,0,0,0,0,-18,16,-19,-20,-30,16,0,41,31,24,29,112,102,112,120,135,106,165,136,186,166,221,197,217,216,301,290,245,253,489,481,518,540,529,546,544,520,545,545,533,522,494,487,470,434,543,451,439,417,634,627,597,551,543,529,523,470,755,755,754,743,725,722,678,675,835,829,824,824,814,814,29981,29982,29982,29983,29984,29985]} 1. d4 {[%emt 0:00:13]} d5 {[%emt 0:03:54]} 2. c4 {[%emt 0:00:13]} e6 {[%emt 0:00:32]} 3. Nc3 {[%emt 1:31:34]} Nf6 {[%emt 0:00:32]} 4. Bg5 {[%emt 0:00:00]} Be7 {[%emt 0:00:09]} 5. e3 {[%emt 0:00:00]} h6 {[%emt 0:00:50]} 6. Bh4 {[%emt 0:00:00]} O-O {[%emt 0:00:11]} 7. Rc1 {[%emt 0:00:00]} b6 {[%emt 0:00:53]} 8. cxd5 {[%emt 0:00:00]} Nxd5 {[%emt 0:01:36]} 9. Nxd5 {[%emt 0:00:00]} exd5 {[%emt 0:00:29]} 10. Bxe7 {[%emt 0:00:00]} Qxe7 {[%emt 1:26:24]} 11. Be2 {[%emt 0:04:00]} Bb7 {[%emt 0:00:00]} 12. Bf3 {[%emt 0:00:30] D54: Queen's Gambit Declined: 4 Bg5 Be7: Lines without Nf3.} c6 {[%emt 0:00:00]} 13. Ne2 {[%emt 0:00:00][%cal Bg1e2,Be2f4,Bf4d3,Bd3b4][%mdl 32]} Nd7 {[%emt 0:00:00]} 14. O-O {[%emt 0:01:00] [#] White is slightly better.} Rfd8 $146 {[%emt 0:00:00]} ({Predecessor:} 14... Nf6 15. Nf4 Rfd8 16. Nd3 Rac8 17. Qa4 a5 18. Rfd1 Qd6 19. Qb3 Qc7 20. h4 Ba6 {1-0 Nikolac,J (2440)-Goehring,K (2355) Bundesliga 1985/86 (1.3)}) 15. Nf4 {[%emt 0:00:00]} Qd6 {[%emt 0:02:30]} 16. Qb3 {[%emt 0:00:00]} a5 {[%emt 0:00:00]} 17. Rfd1 {[%emt 0:00:00]} a4 {[%emt 0:00:00]} 18. Qc3 {[%emt 0:02:00]} Nf6 {[%emt 0:01:30]} 19. Nd3 {[%emt 0:00:30]} Rac8 {[%emt 0:00:30]} 20. Qb4 {[%emt 0:00:30]} Qxb4 {[%emt 0:00:00]} 21. Nxb4 {[%emt 0:00:00]} Kf8 {[%emt 0:00:00]} 22. Re1 {[%emt 0:01:00]} Rc7 {[%emt 0:01:30]} 23. Rc3 {[%emt 0:00:30]} Ke7 {[%emt 0:00:30]} 24. Rec1 {[%emt 0:00:30][%cal Rb4c6]} Kd6 {[%emt 0:00:30]} 25. Bd1 {[%emt 0:00:00]} Ra8 {[%emt 0:00:30]} 26. f3 {[%emt 0:00:00]} c5 {[%emt 0:00:30]} 27. Kf2 {[%emt 0:00:00]} Rcc8 {[%emt 0:00:00]} 28. Nd3 {[%emt 0:00:00][%cal Rd4c5]} Nd7 {[%emt 0:01:00]} (28... c4 $5 {[%cal Rc4d3]} 29. Nb4 h5 $11) 29. g4 {[%emt 0:02:30]} c4 {[%emt 0:00:30]} 30. Nb4 {[%emt 0:00:30]} Rf8 {[%emt 0:00:00]} (30... f6 {feels stronger.}) 31. Bc2 {[%emt 0:00:00]} g6 {[%emt 0:01:00]} 32. e4 {[%emt 0:01:00][%cal Be3e4,Be4e5][%mdl 32]} b5 {[%emt 0:00:30]} 33. a3 {[%emt 0:00:00]} Rae8 {[%emt 0:00:00] Black is now going downhill.} (33... Kc7 $11 {remains equal.}) 34. e5+ $16 {[%emt 0:01:00]} Kc7 {[%emt 0:00:00][%cal Od7e5]} 35. f4 {[%emt 0:00:00][%cal Bf3f4,Bf4f5][%mdl 32]} Rh8 {[%emt 0:01:30]} 36. Rh3 {[%emt 0:01:00] White is more active.} Nb6 {[%emt 0:00:30]} (36... Nb8 $16 {might work better.}) 37. Rg1 {[%emt 0:00:30][%cal Bc1g1,Bg1g3,Bg3h3,Bh3h6,Bh6b6][%mdl 32]} Bc8 {[%emt 0:00:00]} (37... Nc8 $16 {keeps fighting.}) 38. f5 $18 {[%emt 0:00:30]} Reg8 {[%emt 0:01:00]} (38... Ref8 $142 39. Ke3 g5) 39. Rgg3 {[%emt 0:00:30]} Bd7 {[%emt 0:00:30]} 40. Rh4 {[%emt 0:00:30]} f6 {[%emt 0:00:30]} 41. Rgh3 {[%emt 0:15:30]} (41. exf6 $6 g5 42. Rhh3 Rf8 $18) (41. fxg6 fxe5 42. dxe5 Be8 $18) 41... fxe5 {[%emt 0:00:00]} 42. dxe5 {[%emt 0:00:30]} Rf8 $2 {[%emt 0:16:00] [#]} (42... gxf5 43. gxf5 Rf8) 43. Rxh6 {[%emt 0:00:30]} Rxh6 {[%emt 0:00:00]} 44. Rxh6 {[%emt 0:00:30]} gxf5 {[%emt 0:01:00]} 45. Na6+ {[%emt 0:00:30]} Kb7 {[%emt 0:00:30]} 46. Nc5+ {[%emt 0:00:30]} Kc7 {[%emt 0:00:30] [#]} 47. Rxb6 $1 {[%emt 0:00:00][%mdl 576] Hoping for Nxd7. Remove Defender, Decoy} fxg4+ {[%emt 0:00:30]} 48. Rf6 {[%emt 0:01:00]} Rh8 {[%emt 0:00:30]} 49. Kg2 {[%emt 0:00:30] And now Rf7 would win.} Bc8 {[%emt 0:00:30]} 50. Bg6 {[%emt 0:00:30] Wards off Re8} d4 {[%emt 0:00:30]} 51. Be4 {[%emt 0:00:30]} d3 {[%emt 0:00:30]} 52. Rc6+ {[%emt 0:00:30]} Kb8 {[%emt 0:00:30]} (52... Kd8 $142 53. e6 d2) 53. e6 {[%emt 0:00:30]} Rd8 {[%emt 0:00:00]} 54. Kf2 {[%emt 0:00:30]} d2 {[%emt 0:00:00]} 55. Bc2 {[%emt 0:00:00]} Bxe6 {[%emt 0:01:30]} 56. Rb6+ {[%emt 0:01:00]} Ka7 {[%emt 0:00:30]} (56... Kc8 $142 57. Rc6+ Kb8 58. Rxe6 d1=Q 59. Bxd1 Rxd1 60. Rb6+ Kc7 61. Rxb5 Rd2+ 62. Ke3 Rxh2 63. Nxa4 Kd6) 57. Rb7+ {[%emt 0:00:00]} ({Not} 57. Rxb5 Bd5 58. Rb4 (58. Nxa4 Bf3 $16) (58. Bxa4 Bc6 $14) 58... Bf3 59. Rxa4+ (59. Rxc4 d1=Q $16) 59... Kb6 $18) 57... Ka8 {[%emt 0:00:00]} 58. Nxe6 {[%emt 0:01:00]} d1=Q {[%emt 0:00:00]} 59. Bxd1 {[%emt 0:00:00]} Rxd1 {[%emt 0:00:00]} 60. Rxb5 {[%emt 0:00:00][%mdl 4096] Endgame KRN-KR} Rd3 {[%emt 0:00:00]} 61. Ra5+ {[%emt 0:00:00]} Kb8 {[%emt 0:00:00]} 62. Rxa4 {[%emt 0:00:00]} Rd2+ {[%emt 0:00:00]} 63. Kg3 {[%emt 0:00:00]} Rxb2 {[%emt 0:03:30]} 64. Rb4+ {[%emt 0:00:42] White mates.} Rxb4 {[%emt 0:00:00]} 65. axb4 {[%emt 0:00:09]} c3 {[%emt 0:00:00]} 66. Nd4 {[%emt 0:00:09] Weighted Error Value: White=0.12 (very precise) /Black=0.32} (66. Kxg4 $2 {perishes.} c2 67. Ng5 c1=Q $19) 1-0

[Event "36th Belgrade Trophy 2023"]
[Site "Belgrade"]
[Date "2023.12.01"]
[Round "7.13"]
[White "Mezentsev, Ivan"]
[Black "Carnic, Dejan"]
[Result "1-0"]
[ECO "C65"]
[WhiteElo "2362"]
[BlackElo "1958"]
[Annotator "RC"]
[PlyCount "59"]
[EventDate "2023.10.23"]
[EventType "swiss"]
[EventCountry "SRB"]
[SourceTitle "playchess.com"]
[Source "ChessBase"]
[SourceQuality "1"]
[TimeControl "40/5400+30:900+30"]

1. e4 {[%emt 0:04:06]} e5 {[%emt 0:00:25]} 2. Nf3 {[%emt 0:01:17]} Nc6 {[%emt 0:00:34]} 3. Bb5 {[%emt 0:00:54]} Nf6 {[%emt 0:02:14]} 4. d3 {[%emt 0:00:33]} Bc5 {[%emt 0:02:41]} 5. O-O {[%emt 0:03:00]} Nd4 {[%emt 0:26:24]} 6. Nxd4 {[%emt 0:01:02]} Bxd4 {[%emt 0:00:06]} 7. Nd2 {[%emt 0:00:31]} c6 {[%emt 0:00:36]} 8. Ba4 {[%emt 0:00:40]} d6 {[%emt 0:02:44]} 9. c3 {[%emt 0:09:44]} Bb6 {[%emt 0:05:15]} 10. Nc4 {[%emt 0:02:25]} Bc7 {[%emt 0:10:33]} 11. Ne3 {[%emt 0:00:10]} O-O {[%emt 0:03:45]} 12. Qf3 {[%emt 0:15:24]} d5 {[%emt 0:20:07]} 13. h3 {[%emt 0:00:17]} Be6 {[%emt 0:01:41]} 14. Bc2 {[%emt 0:01:02]} Re8 {[%emt 0:02:23]} 15. Nf5 {[%emt 0:01:38]} Bxf5 {[%emt 0:00:59]} 16. Qxf5 {[%emt 0:00:35]} g6 {[%emt 0:03:09]} 17. Qf3 {[%emt 0:00:31]} Nh5 {[%emt 0:00:45]} 18. Bb3 {[%emt 0:04:38]} Nf4 {[%emt 0:06:49]} 19. Bxf4 {[%emt 0:00:44]} dxe4 {[%emt 0:00:50]} 20. Qxe4 {[%emt 0:01:27]} exf4 {[%emt 0:00:13]} 21. Qf3 {[%emt 0:02:32]} Qd7 {[%emt 0:00:57]} 22. d4 {[%emt 0:00:24]} Rad8 {[%emt 0:02:49]} 23. Rad1 {[%emt 0:00:29]} Qf5 {[%emt 0:02:14]} 24. Rfe1 {[%emt 0:00:11]} Kf8 {[%emt 0:01:20]} 25. Rxe8+ {[%emt 0:00:59]} Kxe8 {[%emt 0:02:25]} 26. d5 {[%emt 0:00:26]} cxd5 {[%emt 0:00:18]} 27. Bxd5 {[%emt 0:00:11]} b6 {[%emt 0:00:20]} 28. c4 {[%emt 0:01:14]} Kf8 {[%emt 0:00:12]} 29. Re1 {[%emt 0:00:14]} Re8 {[%emt 0:00:27]} 30. Qa3+ {[%emt 0:00:55]} 1-0

[Event "36th Belgrade Trophy 2023"]
[Site "Belgrade"]
[Date "2023.12.01"]
[Round "7.14"]
[White "Popchev, Milko"]
[Black "Garifulin, Yury"]
[Result "1/2-1/2"]
[ECO "B50"]
[WhiteElo "2244"]
[BlackElo "1956"]
[Annotator "RC"]
[PlyCount "78"]
[EventDate "2023.10.23"]
[EventType "swiss"]
[EventCountry "SRB"]
[SourceTitle "playchess.com"]
[Source "ChessBase"]
[SourceQuality "1"]
[TimeControl "40/5400+30:900+30"]

1. e4 {[%emt 1:31:00]} c5 {[%emt 1:31:00]} 2. Nf3 {[%emt 0:00:30]} d6 {[%emt 0:00:30]} 3. Be2 {[%emt 0:00:30]} g6 {[%emt 0:00:00]} 4. O-O Bg7 {[%emt 0:01:00]} 5. Re1 {[%emt 0:01:00]} Nf6 {[%emt 0:00:30]} 6. Bf1 {[%emt 0:00:30]} Nc6 {[%emt 0:00:00]} 7. c3 {[%emt 0:00:00]} O-O {[%emt 0:00:00]} 8. a3 e5 {[%emt 0:01:30]} 9. b4 {[%emt 0:01:30]} d5 {[%emt 0:00:30]} 10. exd5 {[%emt 0:00:30]} Qxd5 {[%emt 0:00:30]} 11. b5 {[%emt 0:00:30]} e4 {[%emt 0:00:30]} 12. c4 {[%emt 0:00:30]} Qh5 {[%emt 0:00:30]} 13. bxc6 {[%emt 0:00:30]} exf3 {[%emt 0:00:30]} 14. Qxf3 {[%emt 0:00:30]} Ng4 {[%emt 0:00:30]} 15. h3 {[%emt 0:00:30]} Bxa1 {[%emt 0:00:30]} 16. Nc3 {[%emt 0:00:30]} Nh6 {[%emt 0:00:30]} 17. g4 {[%emt 0:00:30]} Bxg4 {[%emt 0:00:30]} 18. hxg4 {[%emt 0:00:30]} Qxg4+ {[%emt 0:00:30]} 19. Qxg4 {[%emt 0:00:30]} Nxg4 {[%emt 0:00:00]} 20. cxb7 Rae8 {[%emt 0:01:00]} 21. Rxe8 {[%emt 0:00:00]} Rxe8 {[%emt 0:00:00]} 22. a4 {[%emt 0:01:30]} Ne5 {[%emt 0:00:28]} 23. Bg2 {[%emt 0:00:00]} Bxc3 {[%emt 0:00:30]} 24. dxc3 {[%emt 0:00:00]} Nd7 {[%emt 0:00:30]} 25. Bf4 {[%emt 0:01:30]} Nb8 {[%emt 0:01:02]} 26. Bd5 {[%emt 0:00:30]} Kg7 {[%emt 0:00:30]} 27. Kg2 {[%emt 0:00:30]} f5 {[%emt 0:00:00]} 28. Bd6 Na6 {[%emt 0:01:00]} 29. f4 {[%emt 0:01:00]} h6 {[%emt 0:00:00]} 30. Kf3 Kf6 {[%emt 0:01:00]} 31. a5 {[%emt 0:01:00]} g5 {[%emt 0:00:30]} 32. Kf2 {[%emt 0:00:30]} g4 {[%emt 0:00:00]} 33. Bg2 h5 {[%emt 0:00:28]} 34. Kg3 Re3+ {[%emt 0:01:02]} 35. Kh4 {[%emt 0:01:30]} Re2 {[%emt 0:00:30]} 36. Be5+ {[%emt 0:00:30]} Kg6 {[%emt 0:00:30]} 37. Bc6 {[%emt 0:00:30]} Re3 {[%emt 0:00:30]} 38. Bg2 {[%emt 0:00:30]} Re2 {[%emt 0:00:30]} 39. Bc6 {[%emt 0:00:00]} Re3 {[%emt 0:00:00]} 1/2-1/2

[Event "36th Belgrade Trophy 2023"]
[Site "Belgrade"]
[Date "2023.12.01"]
[Round "7.15"]
[White "Zubova, Mariya"]
[Black "Zoric, Savo"]
[Result "1/2-1/2"]
[ECO "C41"]
[WhiteElo "2157"]
[BlackElo "1952"]
[Annotator "RC"]
[PlyCount "115"]
[EventDate "2023.10.23"]
[EventType "swiss"]
[EventCountry "SRB"]
[SourceTitle "playchess.com"]
[Source "ChessBase"]
[SourceQuality "1"]
[TimeControl "40/5400+30:900+30"]

1. e4 {[%emt 0:00:07]} d6 {[%emt 0:00:05]} 2. d4 {[%emt 0:00:39]} Nf6 {[%emt 0:00:07]} 3. Nc3 {[%emt 0:00:45]} e5 {[%emt 0:00:04]} 4. Nf3 {[%emt 0:01:20]} Nbd7 {[%emt 0:00:05]} 5. Bc4 {[%emt 0:00:30]} Be7 {[%emt 0:00:10]} 6. O-O {[%emt 0:00:54]} O-O {[%emt 0:00:06]} 7. Re1 {[%emt 0:00:44]} c6 {[%emt 0:00:04]} 8. a4 {[%emt 0:00:18]} b6 {[%emt 0:00:51]} 9. h3 {[%emt 0:00:59]} a6 {[%emt 0:01:54]} 10. b3 {[%emt 0:05:05]} Rb8 {[%emt 0:01:34]} 11. Bb2 {[%emt 0:01:39]} b5 {[%emt 0:02:49]} 12. axb5 {[%emt 0:00:14]} axb5 {[%emt 0:00:35]} 13. Bf1 {[%emt 0:00:13]} Bb7 {[%emt 0:04:42]} 14. dxe5 {[%emt 0:14:02]} dxe5 {[%emt 0:09:34]} 15. g3 {[%emt 0:04:21]} Qc7 {[%emt 0:03:24]} 16. Bg2 {[%emt 0:00:17]} Ra8 {[%emt 0:06:15]} 17. Qe2 {[%emt 0:01:56]} Bb4 {[%emt 0:10:40]} 18. Red1 {[%emt 0:07:46]} Rfe8 {[%emt 0:03:11]} 19. Ne1 {[%emt 0:03:00]} Bf8 {[%emt 0:05:12]} 20. Nd3 {[%emt 0:03:24]} Nc5 {[%emt 0:00:54]} 21. Qe3 {[%emt 0:06:18]} Nxd3 {[%emt 0:02:59]} 22. Rxd3 {[%emt 0:00:06]} Rxa1+ {[%emt 0:01:40]} 23. Bxa1 {[%emt 0:00:04]} Nd7 {[%emt 0:03:09]} 24. Rd1 {[%emt 0:03:30]} Bc8 {[%emt 0:01:30]} 25. Bb2 {[%emt 0:01:10]} Bc5 {[%emt 0:01:00]} 26. Qe2 {[%emt 0:06:27]} Nf8 {[%emt 0:05:11]} 27. Na2 {[%emt 0:05:11]} Ne6 {[%emt 0:01:45]} 28. c3 {[%emt 0:00:15]} Rd8 {[%emt 0:00:26]} 29. Rxd8+ {[%emt 0:03:45]} Qxd8 {[%emt 0:04:57]} 30. Nc1 {[%emt 0:00:21]} f6 {[%emt 0:10:31]} 31. h4 {[%emt 0:00:38]} Qd6 {[%emt 0:01:22]} 32. Qd3 {[%emt 0:02:22]} Bd7 {[%emt 0:03:44]} 33. Bh3 {[%emt 0:02:19]} Nf8 {[%emt 0:02:32]} 34. Bxd7 {[%emt 0:02:16]} Nxd7 {[%emt 0:00:34]} 35. Qxd6 {[%emt 0:00:12]} Bxd6 {[%emt 0:00:05]} 36. Nd3 {[%emt 0:00:05]} Nc5 {[%emt 0:02:00]} 37. Nxc5 {[%emt 0:00:18]} Bxc5 {[%emt 0:00:05]} 38. h5 {[%emt 0:01:07]} g6 {[%emt 0:01:56]} 39. hxg6 {[%emt 0:00:05]} hxg6 {[%emt 0:00:07]} 40. Kf1 {[%emt 0:00:00]} Kf7 {[%emt 0:00:00]} 41. Ke2 {[%emt 0:02:04]} Ke6 {[%emt 0:00:14]} 42. Bc1 {[%emt 0:00:39]} Kd6 {[%emt 0:02:18]} 43. f3 {[%emt 0:01:13]} Ke6 {[%emt 0:00:07]} 44. Kd3 {[%emt 0:00:18]} Kd7 {[%emt 0:01:45]} 45. Bd2 {[%emt 0:02:48]} Ke6 {[%emt 0:00:05]} 46. Ke2 {[%emt 0:02:19]} Ke7 {[%emt 0:00:14]} 47. f4 {[%emt 0:00:12]} Ke6 {[%emt 0:00:06]} 48. Kf3 {[%emt 0:00:24]} f5 {[%emt 0:01:19]} 49. g4 {[%emt 0:02:06]} fxe4+ {[%emt 0:00:36]} 50. Kxe4 {[%emt 0:00:04]} exf4 {[%emt 0:00:04]} 51. Bxf4 {[%emt 0:00:11]} Bf2 {[%emt 0:01:32]} 52. Bc7 {[%emt 0:02:10]} Be1 {[%emt 0:00:19]} 53. Be5 {[%emt 0:00:42]} Bf2 {[%emt 0:00:23]} 54. c4 {[%emt 0:00:28]} bxc4 {[%emt 0:00:17]} 55. bxc4 {[%emt 0:00:04]} Be1 {[%emt 0:00:13]} 56. Bd4 {[%emt 0:00:32]} Bd2 {[%emt 0:01:56]} 57. Be5 {[%emt 0:00:05]} Be1 {[%emt 0:00:05]} 58. Bd4 {[%emt 0:01:20]} 1/2-1/2

[Event "36th Belgrade Trophy 2023"]
[Site "Belgrade"]
[Date "2023.12.02"]
[Round "8.1"]
[White "Atalik, Suat"]
[Black "Bryakin, Mikhail"]
[Result "1/2-1/2"]
[ECO "D35"]
[WhiteElo "2427"]
[BlackElo "2478"]
[Annotator "ChessBase"]
[PlyCount "67"]
[EventDate "2023.10.23"]
[EventType "swiss"]
[EventCountry "SRB"]
[SourceTitle "playchess.com"]
[Source "ChessBase"]
[SourceQuality "1"]
[TimeControl "40/5400+30:900+30"]

1. d4 {[%emt 0:00:03]} Nf6 {[%emt 0:05:09]} 2. c4 {[%emt 1:31:27]} e6 {[%emt 0:00:06]} 3. Nc3 {[%emt 0:00:00]} d5 {[%emt 0:00:08]} 4. cxd5 {[%emt 0:01:00]} Nxd5 {[%emt 1:27:07]} 5. g3 {[%emt 0:00:30]} c5 {[%emt 0:00:00]} 6. Bg2 {[%emt 0:00:00]} Nxc3 {[%emt 0:00:00]} 7. bxc3 {[%emt 0:00:00]} cxd4 {[%emt 0:00:00]} 8. Qxd4 {[%emt 0:00:00]} Qxd4 {[%emt 0:00:00]} 9. cxd4 {[%emt 0:00:00]} Nc6 {[%emt 0:00:00]} 10. Nf3 {[%emt 0:00:00]} Bb4+ {[%emt 0:00:00]} 11. Bd2 {[%emt 0:00:00]} Bxd2+ {[%emt 0:00:00]} 12. Kxd2 {[%emt 0:00:00]} Bd7 {[%emt 0:04:00]} 13. Rhc1 {[%emt 0:04:00]} Rc8 {[%emt 0:00:30]} 14. Ne5 {[%emt 0:00:30]} Nxe5 {[%emt 0:00:30]} 15. dxe5 {[%emt 0:00:30]} Bc6 {[%emt 0:00:30]} 16. Bxc6+ {[%emt 0:00:00]} bxc6 {[%emt 0:00:30]} 17. Rc4 {[%emt 0:01:00]} Ke7 {[%emt 0:00:00]} 18. e4 {[%emt 0:00:00]} Rc7 {[%emt 0:00:00]} 19. Rac1 {[%emt 0:00:00]} Rb8 {[%emt 0:00:00]} 20. Rxc6 {[%emt 0:01:30]} Rxc6 {[%emt 0:02:00]} 21. Rxc6 {[%emt 0:00:30]} Rb2+ {[%emt 0:00:30]} 22. Rc2 {[%emt 0:00:00]} Rxc2+ {[%emt 0:00:00]} 23. Kxc2 {[%emt 0:00:00]} Kd7 {[%emt 0:01:00]} 24. Kb3 {[%emt 0:01:30]} Kc6 {[%emt 0:00:00]} 25. Kc4 {[%emt 0:00:00]} a5 {[%emt 0:00:00]} 26. h4 {[%emt 0:01:00]} g6 {[%emt 0:01:30]} 27. f4 {[%emt 0:00:30]} h6 {[%emt 0:00:30]} 28. a4 {[%emt 0:00:00]} Kb6 {[%emt 0:00:00]} 29. g4 {[%emt 0:00:00]} Kc6 {[%emt 0:00:00]} 30. Kd4 {[%emt 0:00:00]} Kb6 {[%emt 0:00:00]} 31. f5 {[%emt 0:00:00]} g5 {[%emt 0:00:00]} 32. hxg5 {[%emt 0:00:00]} hxg5 {[%emt 0:00:00]} 33. fxe6 {[%emt 0:00:00]} fxe6 {[%emt 0:00:00]} 34. Kc4 {[%emt 0:03:30]} 1/2-1/2

[Event "36th Belgrade Trophy 2023"]
[Site "Belgrade"]
[Date "2023.12.02"]
[Round "8.2"]
[White "Blagojevic, Dragisa"]
[Black "Liu, Zexu"]
[Result "1/2-1/2"]
[ECO "D76"]
[WhiteElo "2438"]
[BlackElo "2286"]
[Annotator "ChessBase"]
[PlyCount "68"]
[EventDate "2023.10.23"]
[EventType "swiss"]
[EventCountry "SRB"]
[SourceTitle "playchess.com"]
[Source "ChessBase"]
[SourceQuality "1"]
[TimeControl "40/5400+30:900+30"]

1. d4 {[%emt 0:01:27]} Nf6 {[%emt 0:00:07]} 2. c4 {[%emt 0:00:22]} g6 {[%emt 0:00:05]} 3. Nf3 {[%emt 0:00:14]} Bg7 {[%emt 0:00:04]} 4. g3 {[%emt 0:00:05]} O-O {[%emt 0:00:07]} 5. Bg2 {[%emt 0:00:05]} d5 {[%emt 0:00:05]} 6. cxd5 {[%emt 0:00:08]} Nxd5 {[%emt 0:00:05]} 7. O-O {[%emt 0:00:07]} Nb6 {[%emt 0:00:03]} 8. Nc3 {[%emt 0:00:14]} Nc6 {[%emt 0:00:03]} 9. d5 {[%emt 0:00:33]} Na5 {[%emt 0:00:04]} 10. Qc2 {[%emt 0:00:28]} c6 {[%emt 0:00:09]} 11. dxc6 {[%emt 0:01:19]} Nxc6 {[%emt 0:00:03]} 12. Rd1 {[%emt 0:00:10]} Qe8 {[%emt 0:00:04]} 13. Be3 {[%emt 0:17:14]} Bf5 {[%emt 0:02:48]} 14. Qc1 {[%emt 0:04:09]} Rc8 {[%emt 0:05:07]} 15. Bh6 {[%emt 0:01:23]} e5 {[%emt 0:02:47]} 16. Bxg7 {[%emt 0:02:12]} Kxg7 {[%emt 0:00:05]} 17. b3 {[%emt 0:07:05]} Qe7 {[%emt 0:18:47]} 18. Qb2 {[%emt 0:02:01]} Rfd8 {[%emt 0:04:02]} 19. Rxd8 {[%emt 0:07:09]} Rxd8 {[%emt 0:03:23]} 20. Rd1 {[%emt 0:01:16]} Rxd1+ {[%emt 0:04:19]} 21. Nxd1 {[%emt 0:00:05]} Qd6 {[%emt 0:02:02]} 22. Qd2 {[%emt 0:02:47]} Qc5 {[%emt 0:02:50]} 23. Ne1 {[%emt 0:04:03]} h5 {[%emt 0:07:53]} 24. Qc3 {[%emt 0:03:19]} Qd6 {[%emt 0:01:21]} 25. Ne3 {[%emt 0:01:48]} Bd7 {[%emt 0:00:12]} 26. Kf1 {[%emt 0:03:12]} f6 {[%emt 0:05:32]} 27. Qd3 {[%emt 0:11:51]} Qe7 {[%emt 0:05:15]} 28. N1c2 {[%emt 0:03:10]} Nd8 {[%emt 0:04:02]} 29. Qc3 {[%emt 0:06:03]} Bc6 {[%emt 0:01:25]} 30. Nb4 {[%emt 0:00:22]} Bxg2+ 31. Kxg2 {[%emt 0:00:06]} Ne6 {[%emt 0:01:37]} 32. Ned5 {[%emt 0:04:07]} Nxd5 {[%emt 0:01:38]} 33. Nxd5 {[%emt 0:18:26]} Qd7 {[%emt 0:03:30]} 34. Qf3 {[%emt 0:00:00]} f5 {[%emt 0:03:46]} 1/2-1/2